fUSD/lending_fUSD_20260622
["ID","MTS","AMOUNT","RATE_DAILY","PERIOD"]
[426047702,1782131492000,-500.0,0.00027671,2]
[426047704,1782131492000,-500.0,0.00027671,2]
[426047711,1782131492000,-500.0,0.00027671,2]
[426047707,1782131492000,-500.0,0.00027671,2]
[426047706,1782131492000,-500.0,0.00027671,2]
[426047709,1782131492000,-919.77,0.00027671,2]
[426047720,1782131492000,-500.0,0.00027671,2]
[426047716,1782131492000,-500.0,0.00027671,2]
[426047724,1782131492000,-775.18,0.00027671,2]
[426047713,1782131492000,-500.0,0.00027671,2]
[426047723,1782131492000,-500.0,0.00027671,2]
[426047742,1782131492000,-4175.97,0.00027671,2]
[426047751,1782131492000,-500.0,0.00027671,2]
[426047746,1782131492000,-500.0,0.00027671,2]
[426047787,1782131492000,-984.2,0.00027671,2]
[426047782,1782131492000,-500.0,0.00027671,2]
[426047785,1782131492000,-500.0,0.00027671,2]
[426047779,1782131492000,-1013.21,0.00027671,2]
[426047776,1782131492000,-500.0,0.00027671,2]
[426047778,1782131492000,-500.0,0.00027671,2]
[426047783,1782131492000,-500.0,0.00027671,2]
[426047786,1782131492000,-500.0,0.00027671,2]
[426047781,1782131492000,-500.0,0.00027671,2]
[426047784,1782131492000,-500.0,0.00027671,2]
[426047789,1782131492000,-500.0,0.00027671,2]
[426047790,1782131492000,-500.0,0.00027671,2]
[426047800,1782131492000,-500.0,0.00027671,2]
[426047792,1782131492000,-500.0,0.00027671,2]
[426047791,1782131492000,-500.0,0.00027671,2]
[426047799,1782131492000,-500.0,0.00027671,2]
[426047788,1782131492000,-500.0,0.00027671,2]
[426047794,1782131492000,-587.25,0.00027671,2]
[426047798,1782131492000,-565.92,0.00027671,2]
[426047795,1782131492000,-500.0,0.00027671,2]
[426047796,1782131492000,-2249.47,0.00027671,2]
[426047793,1782131492000,-500.0,0.00027671,2]
[426047797,1782131492000,-659.85,0.00027671,2]
[426047744,1782131492000,-513.61,0.00027671,2]
[426047801,1782131492000,-189.7581,0.00027673,2]
[426047780,1782131492000,-948.85,0.00027671,2]
[426047777,1782131492000,-500.0,0.00027671,2]
[426047802,1782131492000,-166.24117655,0.00027681,2]
[426047765,1782131492000,-777.53,0.00027671,2]
[426047747,1782131492000,-500.0,0.00027671,2]
[426047758,1782131492000,-500.0,0.00027671,2]
[426047750,1782131492000,-895.47,0.00027671,2]
[426047749,1782131492000,-500.0,0.00027671,2]
[426047755,1782131492000,-781.2,0.00027671,2]
[426047757,1782131492000,-500.0,0.00027671,2]
[426047753,1782131492000,-500.0,0.00027671,2]
[426047775,1782131492000,-879.74,0.00027671,2]
[426047756,1782131492000,-554.0,0.00027671,2]
[426047759,1782131492000,-1281.85,0.00027671,2]
[426047754,1782131492000,-500.0,0.00027671,2]
[426047760,1782131492000,-500.0,0.00027671,2]
[426047752,1782131492000,-500.0,0.00027671,2]
[426047774,1782131492000,-500.0,0.00027671,2]
[426047764,1782131492000,-500.0,0.00027671,2]
[426047761,1782131492000,-500.0,0.00027671,2]
[426047772,1782131492000,-500.0,0.00027671,2]
[426047771,1782131492000,-531.13,0.00027671,2]
[426047766,1782131492000,-537.51,0.00027671,2]
[426047767,1782131492000,-500.0,0.00027671,2]
[426047770,1782131492000,-500.0,0.00027671,2]
[426047768,1782131492000,-309.36,0.00027671,2]
[426047762,1782131492000,-500.0,0.00027671,2]
[426047773,1782131492000,-500.0,0.00027671,2]
[426047763,1782131492000,-296.79,0.00027671,2]
[426047769,1782131492000,-805.85,0.00027671,2]
[426047834,1782131493000,-596.04298335,0.00027877,2]
[426047836,1782131493000,-611.03283757,0.00027877,2]
[426047842,1782131493000,-457.93694086,0.00027877,2]
[426047841,1782131493000,-343.32851635,0.00027877,2]
[426047830,1782131493000,-593.07289638,0.00027877,2]
[426047839,1782131493000,-513.62303466,0.00027877,2]
[426047835,1782131493000,-267.17961695,0.00027877,2]
[426047833,1782131493000,-552.95079505,0.00027877,2]
[426047824,1782131493000,-498.60537648,0.00027877,2]
[426047843,1782131493000,-409.61401334,0.00027877,2]
[426047838,1782131493000,-580.29824051,0.00027877,2]
[426047851,1782131493000,-518.4700284,0.00027877,2]
[426047837,1782131493000,-544.1155111,0.00027877,2]
[426047840,1782131493000,-474.0660855,0.00027877,2]
[426047846,1782131493000,-164.150029,0.00027877,2]
[426047856,1782131493000,-229.43913755,0.00027877,2]
[426047854,1782131493000,-170.5130456,0.00027877,2]
[426047848,1782131493000,-450.3093209,0.00027877,2]
[426047845,1782131493000,-459.87665222,0.00027877,2]
[426047849,1782131493000,-521.08101112,0.00027877,2]
[426047847,1782131493000,-204.51063373,0.00027877,2]
[426047855,1782131493000,-211.52135977,0.00027877,2]
[426047829,1782131493000,-526.67351473,0.00027877,2]
[426047844,1782131493000,-212.84145914,0.00027877,2]
[426047832,1782131493000,-475.37575953,0.00027877,2]
[426047815,1782131493000,-290.3986294,0.00027832,2]
[426047822,1782131493000,-451.29655966,0.00027877,2]
[426047852,1782131493000,-170.28421828,0.00027877,2]
[426047803,1782131493000,-162.69071168,0.00027681,2]
[426047806,1782131493000,-280.0,0.00027691,5]
[426047804,1782131493000,-188.73261753,0.00027681,2]
[426047808,1782131493000,-394.0,0.00027729,7]
[426047805,1782131493000,-228.51369277,0.00027681,2]
[426047807,1782131493000,-35185.0,0.00027726,2]
[426047809,1782131493000,-501.0,0.00027731,2]
[426047810,1782131493000,-210.31593671,0.00027738,2]
[426047811,1782131493000,-200.0,0.00027768,2]
[426047813,1782131493000,-7349.99999998,0.000278,5]
[426047831,1782131493000,-556.22626306,0.00027877,2]
[426047812,1782131493000,-862.86,0.000278,7]
[426047817,1782131493000,-151.0,0.00027862,2]
[426047816,1782131493000,-500.0,0.0002785,2]
[426047818,1782131493000,-250.8,0.00027862,2]
[426047820,1782131493000,-151.0,0.00027875,2]
[426047819,1782131493000,-189.75809,0.00027873,2]
[426047827,1782131493000,-400.36918089,0.00027877,2]
[426047826,1782131493000,-453.34103782,0.00027877,2]
[426047823,1782131493000,-481.6069269,0.00027877,2]
[426047821,1782131493000,-452.11741345,0.00027877,2]
[426047828,1782131493000,-499.92173006,0.00027877,2]
[426047825,1782131493000,-420.65992809,0.00027877,2]
[426047814,1782131493000,-500.0,0.00027831,2]
[426047853,1782131493000,-372.2084145,0.00027877,2]
[426047892,1782131493000,-338.775264,0.00027944,7]
[426047857,1782131493000,-211.33665678,0.00027877,2]
[426047886,1782131493000,-9005.49575,0.00027944,7]
[426047888,1782131493000,-151.0,0.00027944,7]
[426047883,1782131493000,-7828.100314,0.00027944,7]
[426047889,1782131493000,-7828.100317,0.00027944,7]
[426047908,1782131493000,-2100.0,0.00027944,2]
[426047893,1782131493000,-151.0,0.00027944,7]
[426047890,1782131493000,-345.698737,0.00027944,7]
[426047891,1782131493000,-9005.49575,0.00027944,7]
[426047895,1782131493000,-9005.49575,0.00027944,7]
[426047894,1782131493000,-345.698737,0.00027944,7]
[426047906,1782131493000,-2100.0,0.00027944,2]
[426047905,1782131493000,-2100.0,0.00027944,2]
[426047897,1782131493000,-345.698731,0.00027944,7]
[426047899,1782131493000,-338.77527,0.00027944,7]
[426047901,1782131493000,-391.36981072,0.00027944,2]
[426047898,1782131493000,-9005.49575526,0.00027944,7]
[426047902,1782131493000,-1336.927168,0.00027944,7]
[426047900,1782131493000,-191.839312,0.00027944,7]
[426047903,1782131493000,-2100.0,0.00027944,2]
[426047904,1782131493000,-2100.0,0.00027944,2]
[426047907,1782131493000,-2100.0,0.00027944,2]
[426047909,1782131493000,-2100.0,0.00027944,2]
[426047850,1782131493000,-165.39558021,0.00027877,2]
[426047885,1782131493000,-345.698737,0.00027944,7]
[426047887,1782131493000,-338.775264,0.00027944,7]
[426047896,1782131493000,-338.775264,0.00027944,7]
[426047884,1782131493000,-151.0,0.00027944,7]
[426047861,1782131493000,-482.42,0.00027882,2]
[426047882,1782131493000,-151.0,0.00027944,7]
[426047868,1782131493000,-200.0,0.00027904,2]
[426047865,1782131493000,-4900.0,0.000279,10]
[426047866,1782131493000,-3000.0,0.000279,3]
[426047860,1782131493000,-234.31804654,0.00027877,2]
[426047858,1782131493000,-212.41882599,0.00027877,2]
[426047863,1782131493000,-482.46,0.00027882,2]
[426047862,1782131493000,-152.72,0.00027882,2]
[426047864,1782131493000,-501.73,0.000279,2]
[426047867,1782131493000,-8184.62205416,0.00027904,2]
[426047869,1782131493000,-598.902151,0.00027944,7]
[426047859,1782131493000,-161.15067988,0.00027877,2]
[426047880,1782131493000,-7828.100314,0.00027944,7]
[426047876,1782131493000,-484.886136,0.00027944,7]
[426047870,1782131493000,-484.88613,0.00027944,7]
[426047872,1782131493000,-484.88613,0.00027944,7]
[426047873,1782131493000,-598.902151,0.00027944,7]
[426047874,1782131493000,-484.88613,0.00027944,7]
[426047875,1782131493000,-598.90216,0.00027944,7]
[426047878,1782131493000,-151.0,0.00027944,7]
[426047881,1782131493000,-151.0,0.00027944,7]
[426047879,1782131493000,-151.0,0.00027944,7]
[426047871,1782131493000,-598.902151,0.00027944,7]
[426047877,1782131493000,-7828.100314,0.00027944,7]
[426047936,1782131494000,-561.83246015,0.00027944,2]
[426047920,1782131494000,-2100.0,0.00027944,2]
[426047924,1782131494000,-2100.0,0.00027944,2]
[426047932,1782131494000,-2100.0,0.00027944,2]
[426047933,1782131494000,-2100.0,0.00027944,2]
[426047921,1782131494000,-191.839312,0.00027944,7]
[426047941,1782131494000,-2100.0,0.00027944,2]
[426047937,1782131494000,-2100.0,0.00027944,2]
[426047934,1782131494000,-2100.0,0.00027944,2]
[426047935,1782131494000,-2100.0,0.00027944,2]
[426047942,1782131494000,-2100.0,0.00027944,2]
[426047926,1782131494000,-2100.0,0.00027944,2]
[426047940,1782131494000,-2100.0,0.00027944,2]
[426047938,1782131494000,-2100.0,0.00027944,2]
[426047928,1782131494000,-2100.0,0.00027944,2]
[426047914,1782131494000,-2100.0,0.00027944,2]
[426047927,1782131494000,-2100.0,0.00027944,2]
[426047939,1782131494000,-2100.0,0.00027944,2]
[426047919,1782131494000,-2100.0,0.00027944,2]
[426047911,1782131494000,-2100.0,0.00027944,2]
[426047916,1782131494000,-2100.0,0.00027944,2]
[426047910,1782131494000,-2100.0,0.00027944,2]
[426047912,1782131494000,-2100.0,0.00027944,2]
[426047913,1782131494000,-2100.0,0.00027944,2]
[426047917,1782131494000,-2100.0,0.00027944,2]
[426047915,1782131494000,-2100.0,0.00027944,2]
[426047918,1782131494000,-2100.0,0.00027944,2]
[426047925,1782131494000,-2100.0,0.00027944,2]
[426047922,1782131494000,-2100.0,0.00027944,2]
[426047929,1782131494000,-2100.0,0.00027944,2]
[426047930,1782131494000,-2100.0,0.00027944,2]
[426047923,1782131494000,-1336.927168,0.00027944,7]
[426047931,1782131494000,-2100.0,0.00027944,2]
[426047943,1782131494000,-561.83246015,0.00027944,2]
[426047953,1782131494000,-2100.0,0.00027944,2]
[426047945,1782131494000,-2100.0,0.00027944,2]
[426047965,1782131494000,-2100.0,0.00027944,2]
[426047967,1782131494000,-2100.0,0.00027944,2]
[426047966,1782131494000,-2100.0,0.00027944,2]
[426047969,1782131494000,-2100.0,0.00027944,2]
[426047968,1782131494000,-2100.0,0.00027944,2]
[426047972,1782131494000,-2100.0,0.00027944,2]
[426047963,1782131494000,-2100.0,0.00027944,2]
[426047971,1782131494000,-2100.0,0.00027944,2]
[426047973,1782131494000,-260.970176,0.00027944,7]
[426047976,1782131494000,-191.839312,0.00027944,7]
[426047975,1782131494000,-2100.0,0.00027944,2]
[426047977,1782131494000,-2100.0,0.00027944,2]
[426047978,1782131494000,-2100.0,0.00027944,2]
[426047946,1782131494000,-191.839312,0.00027944,7]
[426047974,1782131494000,-1336.927161,0.00027944,7]
[426047961,1782131494000,-2100.0,0.00027944,2]
[426047970,1782131494000,-2100.0,0.00027944,2]
[426047962,1782131494000,-2100.0,0.00027944,2]
[426047964,1782131494000,-2100.0,0.00027944,2]
[426047948,1782131494000,-1336.927168,0.00027944,7]
[426047947,1782131494000,-260.970176,0.00027944,7]
[426047950,1782131494000,-561.83246015,0.00027944,2]
[426047951,1782131494000,-2100.0,0.00027944,2]
[426047949,1782131494000,-2100.0,0.00027944,2]
[426047952,1782131494000,-2100.0,0.00027944,2]
[426047944,1782131494000,-2100.0,0.00027944,2]
[426047956,1782131494000,-2100.0,0.00027944,2]
[426047955,1782131494000,-2100.0,0.00027944,2]
[426047957,1782131494000,-561.83246014,0.00027944,2]
[426047959,1782131494000,-2100.0,0.00027944,2]
[426047960,1782131494000,-2100.0,0.00027944,2]
[426047958,1782131494000,-2100.0,0.00027944,2]
[426047954,1782131494000,-561.83246014,0.00027944,2]
[426047999,1782131495000,-2100.0,0.00027944,2]
[426047998,1782131495000,-2100.0,0.00027944,2]
[426047997,1782131495000,-2100.0,0.00027944,2]
[426048003,1782131495000,-2100.0,0.00027944,2]
[426048001,1782131495000,-2100.0,0.00027944,2]
[426048004,1782131495000,-2100.0,0.00027944,2]
[426048009,1782131495000,-2100.0,0.00027944,2]
[426048005,1782131495000,-2100.0,0.00027944,2]
[426048006,1782131495000,-2100.0,0.00027944,2]
[426048007,1782131495000,-2100.0,0.00027944,2]
[426048011,1782131495000,-2100.0,0.00027944,2]
[426048008,1782131495000,-2100.0,0.00027944,2]
[426047996,1782131495000,-260.970176,0.00027944,7]
[426048002,1782131495000,-2100.0,0.00027944,2]
[426048000,1782131495000,-2100.0,0.00027944,2]
[426047979,1782131495000,-2100.0,0.00027944,2]
[426047993,1782131495000,-2100.0,0.00027944,2]
[426047980,1782131495000,-2100.0,0.00027944,2]
[426047981,1782131495000,-2100.0,0.00027944,2]
[426047983,1782131495000,-2100.0,0.00027944,2]
[426047984,1782131495000,-2100.0,0.00027944,2]
[426047985,1782131495000,-2100.0,0.00027944,2]
[426047982,1782131495000,-2100.0,0.00027944,2]
[426047995,1782131495000,-2100.0,0.00027944,2]
[426048010,1782131495000,-2100.0,0.00027944,2]
[426047989,1782131495000,-2100.0,0.00027944,2]
[426047990,1782131495000,-2100.0,0.00027944,2]
[426047988,1782131495000,-2100.0,0.00027944,2]
[426047992,1782131495000,-2100.0,0.00027944,2]
[426047994,1782131495000,-2100.0,0.00027944,2]
[426047991,1782131495000,-2100.0,0.00027944,2]
[426047986,1782131495000,-2100.0,0.00027944,2]
[426048012,1782131495000,-696.7406587,0.00027944,2]
[426047987,1782131495000,-2100.0,0.00027944,2]
[426048013,1782131495000,-260.970166,0.00027944,7]
[426048031,1782131495000,-500.0,0.00027945,2]
[426048040,1782131495000,-585.84,0.00027945,2]
[426048042,1782131495000,-500.0,0.00027945,2]
[426048046,1782131495000,-500.0,0.00027945,2]
[426048035,1782131495000,-500.0,0.00027945,2]
[426048041,1782131495000,-510.39348673,0.00027945,2]
[426048030,1782131495000,-500.0,0.00027945,2]
[426048043,1782131495000,-500.0,0.00027945,2]
[426048037,1782131495000,-500.0,0.00027945,2]
[426048038,1782131495000,-500.0,0.00027945,2]
[426048039,1782131495000,-819.26,0.00027945,2]
[426048036,1782131495000,-500.0,0.00027945,2]
[426048045,1782131495000,-500.0,0.00027945,2]
[426048015,1782131495000,-256.274923,0.00027944,7]
[426048047,1782131495000,-500.0,0.00027945,2]
[426048032,1782131495000,-500.0,0.00027945,2]
[426048044,1782131495000,-500.0,0.00027945,2]
[426048026,1782131495000,-500.0,0.00027945,2]
[426048028,1782131495000,-500.0,0.00027945,2]
[426048014,1782131495000,-256.274923,0.00027944,7]
[426048019,1782131495000,-530.352991,0.00027945,2]
[426048017,1782131495000,-256.274925,0.00027944,7]
[426048022,1782131495000,-226.30694413,0.00027945,2]
[426048016,1782131495000,-256.274923,0.00027944,7]
[426048020,1782131495000,-500.0,0.00027945,2]
[426048018,1782131495000,-784.72,0.00027945,2]
[426048024,1782131495000,-511.44695008,0.00027945,2]
[426048034,1782131495000,-500.0,0.00027945,2]
[426048023,1782131495000,-500.0,0.00027945,2]
[426048027,1782131495000,-500.0,0.00027945,2]
[426048033,1782131495000,-500.0,0.00027945,2]
[426048025,1782131495000,-500.0,0.00027945,2]
[426048021,1782131495000,-500.0,0.00027945,2]
[426048029,1782131495000,-500.0,0.00027945,2]
[426048087,1782131496000,-452.52,0.00027945,2]
[426048088,1782131496000,-474.48,0.00027945,2]
[426048089,1782131496000,-500.0,0.00027945,2]
[426048084,1782131496000,-566.12,0.00027945,2]
[426048086,1782131496000,-2673.46,0.00027945,2]
[426048074,1782131496000,-419.27,0.00027945,2]
[426048083,1782131496000,-1000.0,0.00027945,2]
[426048077,1782131496000,-666.68,0.00027945,2]
[426048076,1782131496000,-151.0,0.00027945,3]
[426048094,1782131496000,-695.0,0.00027945,2]
[426048075,1782131496000,-500.0,0.00027945,2]
[426048085,1782131496000,-500.0,0.00027945,2]
[426048091,1782131496000,-500.0,0.00027945,2]
[426048100,1782131496000,-500.0,0.00027945,2]
[426048095,1782131496000,-500.0,0.00027945,2]
[426048090,1782131496000,-500.0,0.00027945,2]
[426048092,1782131496000,-500.0,0.00027945,2]
[426048107,1782131496000,-500.0,0.00027945,2]
[426048098,1782131496000,-500.51,0.00027945,2]
[426048097,1782131496000,-500.0,0.00027945,2]
[426048096,1782131496000,-500.0,0.00027945,2]
[426048104,1782131496000,-500.0,0.00027945,2]
[426048103,1782131496000,-557.46,0.00027945,2]
[426048101,1782131496000,-504.90900752,0.00027945,2]
[426048099,1782131496000,-500.0,0.00027945,2]
[426048106,1782131496000,-500.0,0.00027945,2]
[426048073,1782131496000,-151.0,0.00027945,3]
[426048093,1782131496000,-755.16,0.00027945,2]
[426048078,1782131496000,-500.0,0.00027945,2]
[426048060,1782131496000,-1724.88,0.00027945,2]
[426048082,1782131496000,-500.0,0.00027945,2]
[426048049,1782131496000,-500.0,0.00027945,2]
[426048050,1782131496000,-970.83,0.00027945,2]
[426048048,1782131496000,-680.9,0.00027945,2]
[426048053,1782131496000,-427.35,0.00027945,2]
[426048054,1782131496000,-500.0,0.00027945,2]
[426048056,1782131496000,-947.67,0.00027945,2]
[426048051,1782131496000,-500.0,0.00027945,2]
[426048052,1782131496000,-633.7,0.00027945,2]
[426048055,1782131496000,-513.94,0.00027945,2]
[426048057,1782131496000,-500.0,0.00027945,2]
[426048058,1782131496000,-500.0,0.00027945,2]
[426048066,1782131496000,-500.0,0.00027945,2]
[426048105,1782131496000,-1180.24,0.00027945,2]
[426048070,1782131496000,-500.0,0.00027945,2]
[426048064,1782131496000,-151.0,0.00027945,7]
[426048068,1782131496000,-500.0,0.00027945,2]
[426048061,1782131496000,-539.78,0.00027945,2]
[426048059,1782131496000,-500.0,0.00027945,2]
[426048067,1782131496000,-1276.25,0.00027945,2]
[426048063,1782131496000,-500.0,0.00027945,2]
[426048069,1782131496000,-500.0,0.00027945,2]
[426048062,1782131496000,-500.0,0.00027945,2]
[426048065,1782131496000,-523.65231338,0.00027945,2]
[426048072,1782131496000,-500.0,0.00027945,2]
[426048081,1782131496000,-634.36,0.00027945,2]
[426048079,1782131496000,-500.0,0.00027945,2]
[426048071,1782131496000,-500.0,0.00027945,2]
[426048080,1782131496000,-151.0,0.00027945,7]
[426048108,1782131496000,-661.35,0.00027945,2]
[426048102,1782131496000,-500.0,0.00027945,2]
[426048111,1782131496000,-983.84,0.00027945,2]
[426048140,1782131496000,-500.0,0.00027945,2]
[426048144,1782131496000,-500.0,0.00027945,2]
[426048145,1782131496000,-500.0,0.00027945,2]
[426048156,1782131496000,-500.0,0.00027945,2]
[426048147,1782131496000,-500.0,0.00027945,2]
[426048155,1782131496000,-500.0,0.00027945,2]
[426048157,1782131496000,-500.0,0.00027945,2]
[426048148,1782131496000,-432.75271288,0.00027945,2]
[426048146,1782131496000,-500.0,0.00027945,2]
[426048158,1782131496000,-1404.94,0.00027945,2]
[426048149,1782131496000,-511.5,0.00027945,2]
[426048150,1782131496000,-500.0,0.00027945,2]
[426048151,1782131496000,-586.89,0.00027945,2]
[426048138,1782131496000,-500.0,0.00027945,2]
[426048154,1782131496000,-614.75,0.00027945,2]
[426048153,1782131496000,-500.0,0.00027945,2]
[426048159,1782131496000,-1137.32,0.00027945,2]
[426048163,1782131496000,-445.882329,0.00027945,2]
[426048165,1782131496000,-688.82,0.00027945,2]
[426048161,1782131496000,-500.0,0.00027945,2]
[426048115,1782131496000,-500.0,0.00027945,2]
[426048168,1782131496000,-562.32,0.00027945,2]
[426048160,1782131496000,-500.0,0.00027945,2]
[426048162,1782131496000,-500.0,0.00027945,2]
[426048170,1782131496000,-500.0,0.00027945,2]
[426048166,1782131496000,-515.21,0.00027945,2]
[426048169,1782131496000,-500.0,0.00027945,2]
[426048167,1782131496000,-500.0,0.00027945,2]
[426048152,1782131496000,-500.0,0.00027945,2]
[426048142,1782131496000,-500.0,0.00027945,2]
[426048164,1782131496000,-500.0,0.00027945,2]
[426048141,1782131496000,-500.0,0.00027945,2]
[426048135,1782131496000,-500.0,0.00027945,2]
[426048112,1782131496000,-500.0,0.00027945,2]
[426048113,1782131496000,-500.0,0.00027945,2]
[426048119,1782131496000,-500.0,0.00027945,2]
[426048114,1782131496000,-500.0,0.00027945,2]
[426048118,1782131496000,-500.0,0.00027945,2]
[426048110,1782131496000,-739.37,0.00027945,2]
[426048116,1782131496000,-500.0,0.00027945,2]
[426048109,1782131496000,-500.0,0.00027945,2]
[426048121,1782131496000,-500.0,0.00027945,2]
[426048120,1782131496000,-500.0,0.00027945,2]
[426048132,1782131496000,-500.0,0.00027945,2]
[426048131,1782131496000,-500.0,0.00027945,2]
[426048122,1782131496000,-500.0,0.00027945,2]
[426048117,1782131496000,-500.0,0.00027945,2]
[426048123,1782131496000,-500.0,0.00027945,2]
[426048143,1782131496000,-500.0,0.00027945,2]
[426048126,1782131496000,-500.0,0.00027945,2]
[426048134,1782131496000,-500.0,0.00027945,2]
[426048139,1782131496000,-500.0,0.00027945,2]
[426048137,1782131496000,-500.0,0.00027945,2]
[426048133,1782131496000,-714.12,0.00027945,2]
[426048136,1782131496000,-500.0,0.00027945,2]
[426048129,1782131496000,-500.0,0.00027945,2]
[426048127,1782131496000,-423.51,0.00027945,2]
[426048125,1782131496000,-500.0,0.00027945,2]
[426048128,1782131496000,-500.0,0.00027945,2]
[426048124,1782131496000,-500.0,0.00027945,2]
[426048130,1782131496000,-500.0,0.00027945,2]
[426048198,1782131497000,-500.0,0.00027945,2]
[426048197,1782131497000,-1181.38,0.00027945,2]
[426048195,1782131497000,-593.04,0.00027945,2]
[426048199,1782131497000,-500.0,0.00027945,2]
[426048203,1782131497000,-500.0,0.00027945,2]
[426048200,1782131497000,-548.72,0.00027945,2]
[426048201,1782131497000,-500.0,0.00027945,2]
[426048204,1782131497000,-310.25820952,0.00027945,2]
[426048205,1782131497000,-500.0,0.00027945,2]
[426048202,1782131497000,-500.0,0.00027945,2]
[426048208,1782131497000,-500.0,0.00027945,2]
[426048212,1782131497000,-500.0,0.00027945,2]
[426048207,1782131497000,-500.0,0.00027945,2]
[426048215,1782131497000,-500.0,0.00027945,2]
[426048210,1782131497000,-691.46,0.00027945,2]
[426048214,1782131497000,-500.0,0.00027945,2]
[426048217,1782131497000,-500.0,0.00027945,2]
[426048211,1782131497000,-725.12,0.00027945,2]
[426048196,1782131497000,-501.54,0.00027945,2]
[426048213,1782131497000,-500.0,0.00027945,2]
[426048206,1782131497000,-500.0,0.00027945,2]
[426048190,1782131497000,-500.0,0.00027945,2]
[426048177,1782131497000,-500.0,0.00027945,2]
[426048194,1782131497000,-500.0,0.00027945,2]
[426048216,1782131497000,-500.0,0.00027945,2]
[426048171,1782131497000,-500.0,0.00027945,2]
[426048173,1782131497000,-500.0,0.00027945,2]
[426048183,1782131497000,-500.0,0.00027945,2]
[426048172,1782131497000,-500.0,0.00027945,2]
[426048178,1782131497000,-500.0,0.00027945,2]
[426048175,1782131497000,-500.0,0.00027945,2]
[426048174,1782131497000,-500.0,0.00027945,2]
[426048179,1782131497000,-500.0,0.00027945,2]
[426048180,1782131497000,-807.35,0.00027945,2]
[426048181,1782131497000,-721.3,0.00027945,2]
[426048176,1782131497000,-500.0,0.00027945,2]
[426048182,1782131497000,-500.0,0.00027945,2]
[426048184,1782131497000,-500.0,0.00027945,2]
[426048186,1782131497000,-528.44,0.00027945,2]
[426048188,1782131497000,-500.0,0.00027945,2]
[426048192,1782131497000,-501.75674628,0.00027945,2]
[426048185,1782131497000,-500.0,0.00027945,2]
[426048189,1782131497000,-678.94,0.00027945,2]
[426048187,1782131497000,-500.0,0.00027945,2]
[426048193,1782131497000,-500.0,0.00027945,2]
[426048191,1782131497000,-500.0,0.00027945,2]
[426048219,1782131497000,-500.0,0.00027945,2]
[426048209,1782131497000,-500.0,0.00027945,2]
[426048230,1782131497000,-506.52695567,0.00027945,2]
[426048252,1782131497000,-500.0,0.00027945,2]
[426048246,1782131497000,-197.5,0.00027945,2]
[426048253,1782131497000,-856.58,0.00027945,2]
[426048250,1782131497000,-500.0,0.00027945,2]
[426048243,1782131497000,-500.0,0.00027945,2]
[426048254,1782131497000,-500.0,0.00027945,2]
[426048248,1782131497000,-500.0,0.00027945,2]
[426048245,1782131497000,-500.0,0.00027945,2]
[426048265,1782131497000,-608.59,0.00027945,2]
[426048264,1782131497000,-227.36036797,0.00027945,2]
[426048263,1782131497000,-500.0,0.00027945,2]
[426048256,1782131497000,-500.0,0.00027945,2]
[426048266,1782131497000,-500.0,0.00027945,2]
[426048261,1782131497000,-500.0,0.00027945,2]